bitfinex/quotes_ETHUSD_20260129
["timestamp","ask_amount","ask_price","bid_price","bid_amount"]
[1769729541718,0.001,2821.7,2820.6,0.95561225]
[1769729542813,0.001,2821.7,2820.8,0.95561225]
[1769729543019,0.001,2822.3,2821.0,0.95561225]
[1769729544621,0.001,2821.6,2821.0,0.95561225]
[1769729544805,0.001,2821.6,2821.2,0.95561225]
[1769729545112,0.001,2821.6,2821.3,1.13979139]
[1769729547012,0.001,2821.6,2821.4,1.86143475]
[1769729547215,0.001,2822.3,2821.5,0.97534983]
[1769729547529,0.00199798,2822.3,2821.5,0.97534983]
[1769729548642,0.00099798,2822.2,2821.5,0.97534983]
[1769729548795,0.00099798,2822.2,2821.5,1.53434519]
[1769729550020,0.00099798,2822.2,2821.6,0.88602211]
[1769729550335,0.001,2822.3,2821.7,0.97534983]
[1769729552237,0.001,2822.3,2821.8,0.88595931]
[1769729555904,0.32231363,2823.4,2821.9,0.97963183]
[1769729556229,0.88538529,2823.7,2821.9,0.97963183]
[1769729556230,0.90139367,2824.0,2822.6,0.97963183]
[1769729556407,0.90139367,2823.9,2822.7,0.88567683]
[1769729557624,0.90139367,2823.9,2822.7,1.86530866]
[1769729557822,1.08006144,2823.8,2822.8,0.5408016]
[1769729559219,1.08006144,2823.8,2822.9,0.88561408]
[1769729561420,0.90139367,2823.7,2822.9,0.88561408]
[1769729566355,0.90139367,2823.4,2822.5,0.88572531]
[1769729566523,0.90139367,2823.4,2822.6,0.88570703]
[1769729566842,0.90139367,2823.2,2822.1,3.54344817]
[1769729567049,0.07461493,2823.3,2822.3,0.97963183]
[1769729567212,1.8614993,2823.3,2822.3,0.97963183]
[1769729567412,0.18614993,2823.2,2822.3,0.97963183]
[1769729567613,0.18614993,2823.2,2822.2,0.452308]
[1769729567614,0.90139367,2823.1,2822.2,0.452308]
[1769729569051,0.90139367,2823.1,2822.3,0.88580235]
[1769729572532,0.90139367,2823.1,2822.3,1.86543418]
[1769729572738,0.90139367,2823.4,2822.4,0.97963183]
[1769729572939,1.08753905,2823.3,2822.4,0.97963183]
[1769729573622,1.08753905,2823.3,2822.3,1.86543418]
[1769729574328,1.08753905,2823.3,2822.4,0.97963183]
[1769729574542,0.18614538,2823.3,2822.4,0.97963183]
[1769729574741,0.8854265,2823.5,2822.4,0.97963183]
[1769729574943,0.90139367,2823.4,2822.4,0.97963183]
[1769729576252,1.85330841,2823.6,2822.6,0.97708983]
[1769729576668,0.96789211,2823.6,2822.6,0.97708983]
[1769729579058,0.96789211,2823.5,2822.7,0.88567683]
[1769729579226,1.15322093,2823.4,2822.7,0.88567683]
[1769729580453,0.96789211,2823.0,2822.7,0.88567683]
[1769729581251,0.96789211,2823.0,2822.4,0.88577097]
[1769729581455,0.96789211,2823.0,2822.5,0.002]
[1769729589185,1.92799713,2823.3,2822.5,0.002]
[1769729589364,0.83991237,2823.2,2822.5,0.002]
[1769729590264,1.80780448,2823.2,2822.5,0.002]
[1769729590964,0.96789211,2823.1,2822.5,0.002]
[1769729591175,0.96789211,2823.0,2822.5,0.002]
[1769729592567,0.96789211,2822.7,2822.0,0.88788758]
[1769729592755,0.96789211,2822.5,2821.8,3.54575403]
[1769729592935,0.96789211,2822.5,2822.0,0.88589369]
[1769729593140,0.96789211,2822.7,2821.8,0.97908983]
[1769729593355,0.07461493,2822.8,2821.9,0.97708983]
[1769729593356,1.04250704,2822.8,2821.9,0.97708983]
[1769729593664,0.82129394,2822.7,2821.9,0.97708983]
[1769729593879,0.82129394,2822.7,2822.2,0.002]
[1769729594036,1.78918605,2822.7,2822.2,0.002]
[1769729596271,0.82129394,2822.7,2822.2,0.002]
[1769729596580,0.001,2822.8,2822.2,0.002]
[1769729598178,0.001,2822.8,2822.2,0.97908983]
[1769729598672,0.001,2822.8,2822.3,0.88580235]
[1769729598895,0.001,2822.8,2822.3,1.86289218]
[1769729600878,0.001,2822.8,2822.3,0.88580235]
[1769729602589,0.001,2822.8,2822.3,1.86289218]
[1769729605069,0.001,2822.8,2822.3,0.88580235]
[1769729606456,0.001,2822.6,2822.3,0.88580235]
[1769729607272,0.001,2822.6,2822.2,4.49735495]
[1769729607470,0.001,2822.6,2822.3,0.95214552]
[1769729607772,0.18632882,2823.4,2822.3,0.95214552]
[1769729608092,0.001,2823.3,2822.3,0.95214552]
[1769729609493,0.001,2823.3,2822.5,0.95214552]
[1769729611717,0.001,2823.3,2822.7,0.95214552]
[1769729616526,0.001,2823.3,2822.9,0.92436608]
[1769729617499,0.001,2823.3,2822.8,0.88564545]
[1769729618095,0.001,2823.1,2822.9,0.92436608]
[1769729618808,0.001,2823.1,2822.7,0.92436608]
[1769729620905,0.001,2823.4,2822.9,0.92436608]
[1769729621075,0.002,2823.4,2822.9,0.92436608]
[1769729621276,0.001,2823.4,2823.1,0.92436608]
[1769729621870,0.001,2823.4,2823.0,0.18100115]
[1769729622904,0.001,2823.4,2823.1,0.88555134]
[1769729623779,0.99598921,2824.6,2823.3,0.92436608]
[1769729624179,0.001,2824.5,2823.3,0.92436608]
[1769729624371,0.99698921,2824.7,2823.3,0.92436608]
[1769729625000,0.99698921,2824.7,2823.4,0.88545725]
[1769729625200,0.001,2824.6,2823.5,0.92436608]
[1769729625384,0.001,2824.6,2823.7,0.92436608]
[1769729627408,0.99598921,2824.7,2823.8,0.88533182]
[1769729627608,0.99698921,2824.7,2823.8,0.88533182]
[1769729627809,0.99698921,2824.7,2823.8,1.8096979]
[1769729629610,0.99698921,2824.7,2823.9,0.92436608]
[1769729629791,0.001,2824.4,2823.9,0.92436608]
[1769729630110,0.001,2824.4,2823.9,1.4594686]
[1769729630918,0.002,2824.4,2823.9,1.4594686]
[1769729631281,0.001,2824.4,2823.9,1.4594686]
[1769729631616,0.001,2824.4,2824.0,0.88526912]
[1769729632219,0.018107,2824.8,2824.1,0.92436608]
[1769729632425,0.002,2824.7,2824.2,0.18096352]
[1769729632625,0.002,2824.7,2824.2,1.1053296]
[1769729632833,0.018107,2824.8,2824.2,1.1053296]
[1769729632985,0.002,2824.7,2824.2,1.1053296]
[1769729633297,0.002,2824.7,2824.2,0.18096352]
[1769729633496,0.002,2824.6,2824.0,1.8096352]
[1769729633713,0.016987,2824.8,2824.0,1.8096352]
[1769729633883,0.016987,2824.8,2824.0,0.88526912]
[1769729634084,0.016987,2824.8,2824.1,0.92436608]
[1769729634310,0.016987,2824.8,2824.2,0.92436608]
[1769729636211,0.016987,2824.8,2824.3,0.88517508]
[1769729639531,1.01486182,2824.8,2824.3,0.88517508]
[1769729641626,1.01486182,2824.8,2824.1,0.88523777]
[1769729642043,0.016987,2824.8,2824.1,0.88723777]
[1769729642326,0.001,2824.6,2824.2,0.44282927]
[1769729644237,0.001,2824.6,2824.3,0.88517508]
[1769729644437,0.003987,2824.8,2824.3,0.88517508]
[1769729648344,0.003987,2824.8,2824.2,3.54077848]
[1769729651848,1.00186182,2824.8,2824.1,0.88723461]
[1769729653842,1.00186182,2824.8,2824.1,0.002]
[1769729654351,1.00186182,2824.8,2824.3,0.002]
[1769729654651,1.18656199,2824.7,2824.3,0.002]
[1769729657632,1.18656199,2824.7,2824.5,0.001]
[1769729662955,0.18868717,2824.7,2824.5,0.001]
[1769729666257,1.13362213,2824.7,2824.3,0.002]
[1769729667057,1.13362213,2824.7,2824.1,0.002]
[1769729667244,0.94493496,2824.6,2824.0,0.88726302]
[1769729667429,1.77520781,2824.5,2824.0,0.88726302]
[1769729668056,0.83027285,2824.5,2824.0,0.88726302]
[1769729668262,1.13362213,2824.7,2824.5,0.002]
[1769729668562,1.13362213,2824.7,2824.0,0.002]
[1769729668726,2.01867487,2824.7,2824.0,0.002]
[1769729670453,1.13362213,2824.7,2824.0,0.002]
[1769729671060,0.18868717,2824.7,2824.0,0.98119511]
[1769729671248,0.003987,2824.8,2824.0,1.1680478]
[1769729671789,0.94892196,2824.8,2824.0,1.1680478]
[1769729671960,0.94892196,2824.8,2824.0,0.98119511]
[1769729672141,1.83394086,2824.8,2824.0,0.98119511]
[1769729672542,0.94892196,2824.8,2824.1,0.88523777]
[1769729673259,0.94493496,2824.6,2824.0,0.88724619]
[1769729674554,0.94493496,2824.6,2824.0,0.002]
[1769729674745,0.94493496,2824.6,2824.5,0.001]
[1769729674942,1.83002215,2824.6,2824.0,0.002]
[1769729675271,0.99178832,2824.5,2824.0,0.002]
[1769729678269,1.87684191,2824.7,2824.0,0.002]
[1769729678970,0.99178832,2824.6,2824.0,0.002]
[1769729679148,1.17947251,2824.5,2824.0,0.002]
[1769729679941,1.17947251,2824.5,2824.2,0.002]
[1769729680142,0.18768419,2824.5,2824.2,0.002]
[1769729680353,0.89102576,2824.8,2824.2,0.002]
[1769729680549,1.88281408,2824.8,2824.2,0.002]
[1769729681550,0.99178832,2824.7,2824.2,0.002]
[1769729683274,0.99178832,2824.7,2824.2,0.003]
[1769729684076,0.89102576,2824.8,2824.2,0.003]
[1769729684250,0.5422776,2824.7,2824.2,0.003]
[1769729684448,0.005987,2824.8,2824.2,0.003]
[1769729684650,0.005987,2824.8,2824.2,0.99870861]
[1769729686272,0.005987,2824.8,2824.2,0.003]
[1769729686478,0.89101865,2824.8,2824.2,0.003]
[1769729686883,1.88280697,2824.8,2824.2,0.003]
[1769729687061,0.1882807,2824.7,2824.2,0.003]
[1769729687775,0.99178832,2824.6,2824.0,0.002]
[1769729687977,0.99178832,2824.6,2824.0,0.88726701]
[1769729688170,6.46788027,2824.7,2824.1,0.8852343]
[1769729688365,0.83506872,2824.6,2824.0,0.002]
[1769729688754,0.1882807,2824.7,2824.0,0.002]
[1769729689459,0.1882807,2824.7,2824.0,0.99770861]
[1769729689651,0.005987,2824.8,2824.0,0.99770861]
[1769729690054,0.89100738,2824.8,2824.0,0.99770861]
[1769729690254,0.005987,2824.8,2824.0,0.99770861]
[1769729690584,0.005987,2824.8,2824.2,0.99570861]
[1769729691884,0.005987,2824.8,2824.2,0.99770861]
[1769729692086,0.8047041,2824.8,2824.2,0.99770861]
[1769729692384,0.001,2824.6,2824.2,0.99770861]
[1769729692585,0.001,2824.6,2824.3,0.88517508]
[1769729693077,0.001,2824.6,2824.3,1.88088369]
[1769729693283,0.001,2824.6,2824.3,0.99570861]
[1769729694257,0.002,2824.5,2824.3,0.99570861]
[1769729695986,0.002,2824.5,2824.3,1.88086348]
[1769729700192,0.002,2824.5,2824.2,0.002]
[1769729703896,0.002,2824.5,2824.2,0.88720643]
[1769729704193,0.002,2824.5,2824.2,1.86449985]
[1769729704793,0.001,2824.6,2824.3,0.97729342]
[1769729706266,0.001,2824.6,2824.4,0.88514374]
[1769729706689,0.001,2824.6,2824.4,1.86243716]
[1769729708886,0.001,2824.6,2824.5,0.97729342]
[1769729709088,6.42,2825.3,2824.5,0.97729342]
[1769729709385,2.15879565,2825.3,2824.5,0.97729342]
[1769729709590,0.96993222,2825.2,2824.4,0.88514374]
[1769729710600,0.96993222,2825.1,2824.4,0.88514374]
[1769729712573,0.96993222,2825.0,2824.4,0.88514374]
[1769729712767,1.78337478,2825.0,2824.3,3.54057498]
[1769729713195,0.002,2824.8,2824.3,3.54057498]
[1769729713767,0.002,2824.8,2824.3,4.5178684]
[1769729715399,0.002,2824.8,2824.5,0.002]
[1769729716400,0.003,2824.8,2824.5,0.002]
[1769729719681,0.003,2824.8,2824.5,0.97929342]
[1769729721082,0.003,2824.8,2824.6,0.88508107]
[1769729722112,0.003,2824.8,2824.5,0.97929342]
[1769729722280,0.003,2824.8,2824.5,1.86438192]
[1769729722486,0.003,2824.8,2824.5,0.8870885]
[1769729723710,0.001,2824.8,2824.5,0.8870885]
[1769729727112,0.001,2824.8,2824.5,0.002]
[1769729729801,0.001,2824.6,2824.5,0.002]
[1769729739318,0.002,2824.9,2824.5,0.002]
[1769729741371,0.002,2824.9,2824.5,0.93558476]
[1769729741735,0.002,2824.9,2824.6,0.88508107]
[1769729742336,0.001,2824.7,2824.6,0.88508107]
[1769729742936,0.002,2824.9,2824.6,0.88508107]
[1769729744659,0.002,2824.9,2824.5,0.88709059]
[1769729745356,0.94296684,2824.9,2824.5,0.88709059]
[1769729745734,0.002,2824.9,2824.5,0.88709059]
[1769729745936,0.002,2824.9,2824.5,0.002]
[1769729746144,0.002,2824.9,2824.5,0.88710504]
[1769729746561,0.002,2824.9,2824.5,0.002]
[1769729747475,0.002,2824.9,2824.3,0.88815241]
[1769729747476,0.94096684,2824.8,2824.3,0.88815241]
[1769729747651,1.66295692,2824.7,2824.3,0.88815241]
[1769729748579,1.66295692,2824.7,2824.3,0.003]
[1769729749930,0.94096684,2824.7,2824.3,0.003]
[1769729750135,0.002,2824.9,2824.3,0.003]
[1769729750944,0.002,2824.9,2824.3,0.93658476]
[1769729753378,0.88489374,2825.2,2824.3,0.93658476]
[1769729753379,0.002,2824.8,2824.4,0.88514374]
[1769729753568,0.002,2824.8,2824.4,1.8187285]
[1769729754278,0.002,2824.8,2824.5,0.002]
[1769729754454,0.001,2824.7,2824.5,0.002]
[1769729754784,0.001,2824.7,2824.5,0.93558476]
[1769729757079,0.001,2824.7,2824.6,0.88508107]
[1769729757487,0.001,2824.7,2824.6,1.80203364]
[1769729757786,0.99041384,2825.4,2824.6,1.41952767]
[1769729757985,0.99041384,2825.4,2824.6,0.88508107]
[1769729760002,0.99041384,2825.3,2824.5,3.5424324]
[1769729762394,0.99041384,2825.2,2824.5,0.8871124]
[1769729764855,0.88483046,2825.4,2824.5,1.80406497]
[1769729765563,1.8752443,2825.4,2824.5,1.80406497]
[1769729765762,1.16914276,2825.3,2824.5,1.80406497]
[1769729765997,0.001,2824.8,2824.5,1.80406497]
[1769729768409,0.002,2825.1,2824.5,1.80506497]
[1769729769584,0.002,2825.1,2824.6,0.91695257]
[1769729770679,0.002,2825.1,2824.5,0.8881124]
[1769729771570,0.002,2825.1,2824.5,1.80506497]
[1769729774300,0.002,2825.1,2824.5,0.003]
[1769729774886,0.18972814,2825.1,2824.5,0.003]
[1769729777612,0.18972814,2825.1,2824.7,0.002]
[1769729779308,0.99041384,2825.0,2824.7,0.002]
[1769729779689,0.99041384,2825.0,2824.5,0.003]
[1769729783528,0.99141384,2825.0,2824.5,0.002]
[1769729787149,0.001,2825.0,2824.5,0.002]
[1769729787311,0.99714448,2825.0,2824.5,0.002]
[1769729789092,0.001,2825.0,2824.5,0.002]
[1769729789518,0.001,2825.0,2824.5,0.92365368]
[1769729790114,0.001,2825.0,2824.6,0.88508107]
[1769729790805,0.001,2825.0,2824.7,0.002]
[1769729791006,0.001,2824.8,2824.7,0.002]
[1769729791205,0.001,2825.1,2824.7,0.92365368]
[1769729791893,2.62293666,2825.6,2824.7,0.92365368]
[1769729792110,3.88858726,2825.6,2824.7,0.92365368]
[1769729792310,0.742,2825.6,2824.9,0.92165368]
[1769729792709,1.88086351,2825.8,2824.9,0.92165368]
[1769729792710,0.88471903,2825.8,2824.9,0.92165368]
[1769729792917,0.31435962,2825.9,2824.9,0.92165368]
[1769729793310,0.31435962,2825.9,2825.0,0.92165368]
[1769729794300,0.31435962,2825.9,2825.2,0.9745192]
[1769729797026,0.31435962,2825.9,2825.3,0.88486178]
[1769729797205,0.31435962,2825.9,2825.3,1.85938098]
[1769729797420,0.31435962,2825.9,2825.4,0.9745192]
[1769729797801,1.27142668,2825.9,2825.3,0.88486178]
[1769729798516,1.27142668,2825.9,2825.3,1.32730511]
[1769729799132,0.31435962,2825.9,2825.3,2.30182431]
[1769729799304,0.31435962,2825.9,2825.4,0.9745192]
[1769729799505,0.31435962,2825.9,2825.4,0.9735192]
[1769729801426,0.31435962,2825.9,2825.5,1.85931835]
[1769729801633,0.31435962,2825.9,2825.5,2.44342556]
[1769729801930,0.31435962,2825.9,2825.5,1.46890636]
[1769729803413,0.001,2825.7,2825.5,1.46890636]
[1769729803621,0.26645124,2825.9,2825.6,0.9745192]
[1769729803854,0.95706706,2826.5,2825.6,0.9745192]
[1769729804064,0.95706706,2826.5,2825.7,0.24434256]
[1769729804570,0.95706706,2826.5,2825.7,1.21886176]
[1769729804703,0.32963109,2827.6,2826.2,0.9745192]
[1769729804902,0.32963109,2827.6,2827.1,1.4027282]
[1769729805133,1.06855172,2828.3,2827.5,0.18474668]
[1769729805342,7.30406831,2827.6,2826.1,0.9745192]
[1769729805503,0.07461493,2827.1,2826.3,0.9745192]
[1769729805905,0.40424602,2827.1,2826.3,0.9745192]
[1769729806240,0.95706706,2827.5,2826.3,0.9745192]
[1769729806423,0.07461493,2827.4,2826.5,0.9745192]
[1769729806735,0.07461493,2827.2,2826.5,0.9745192]
[1769729806938,0.32963109,2827.3,2826.5,0.9745192]
[1769729807313,0.07461493,2827.4,2826.6,0.88445482]
[1769729807516,0.32963109,2827.3,2826.6,0.88445482]
[1769729807716,0.32963109,2827.3,2826.6,0.88345482]
[1769729808023,0.40424602,2827.2,2826.6,0.88345482]
[1769729808363,0.07461493,2827.2,2826.6,0.88345482]
[1769729808662,0.07461493,2827.0,2826.4,3.83012736]
[1769729808950,0.07461493,2827.0,2826.6,0.88445482]
[1769729809921,0.07461493,2827.0,2826.5,3.5379382]
[1769729810921,0.32963109,2826.9,2826.4,0.88449495]
[1769729811648,0.32963109,2826.9,2826.1,0.9745192]
[1769729811950,0.55419596,2826.8,2826.2,1.8590992]
[1769729812175,0.32963109,2826.9,2826.3,0.9745192]
[1769729812372,0.07461493,2826.8,2826.3,0.9745192]
[1769729813557,0.32963109,2826.8,2826.3,0.9765192]
[1769729814065,0.32963109,2826.8,2826.4,1.8590366]
[1769729815038,0.07461493,2827.1,2826.5,0.9765192]
[1769729815239,0.07461493,2827.4,2826.6,0.9745192]
[1769729815463,0.07461493,2827.5,2826.6,0.9745192]
[1769729816154,0.001,2826.9,2826.7,1.83262441]
[1769729816355,0.001,2826.9,2826.7,0.88442353]
[1769729818484,0.001,2826.9,2826.6,0.88445482]
[1769729820751,0.001,2826.9,2826.6,1.8326557]
[1769729821839,0.001,2826.9,2826.6,0.88445482]
[1769729822044,0.97463131,2826.8,2826.3,0.8885342]
[1769729822265,0.97463131,2826.8,2826.3,0.89053026]
[1769729822755,0.07461493,2826.6,2826.1,0.88459142]
[1769729822954,0.07461493,2826.6,2826.2,0.88457749]
[1769729823741,0.07461493,2826.6,2826.1,0.88659058]
[1769729823942,0.90001638,2826.5,2825.5,0.94820088]
[1769729824147,0.90001638,2826.3,2825.7,0.88471029]
[1769729827766,0.90001638,2826.3,2825.9,0.002]
[1769729828780,0.90101638,2826.3,2825.9,0.002]
[1769729830863,0.001,2826.3,2825.9,0.002]
[1769729832489,0.17955041,2826.3,2825.9,0.002]
[1769729833208,1.07956679,2826.3,2825.9,0.002]
[1769729835367,0.33063069,2826.2,2825.9,0.002]
[1769729835571,1.07956679,2826.3,2825.9,0.002]
[1769729835767,0.33063387,2826.2,2825.9,0.002]
[1769729835967,1.07956679,2826.3,2825.9,0.002]
[1769729836166,0.53450435,2826.2,2825.9,0.002]
[1769729836394,0.20387135,2826.2,2825.9,0.002]
[1769729836692,1.10388773,2826.2,2825.9,0.002]
[1769729836891,1.23066037,2826.1,2825.7,0.002]
[1769729837093,0.90001638,2826.1,2825.7,0.002]
[1769729837310,0.33067896,2826.0,2825.7,0.002]
[1769729837480,1.10642168,2826.1,2825.7,0.002]
[1769729837681,0.3306565,2826.0,2825.7,0.002]
[1769729837909,1.10642168,2826.1,2825.7,0.002]
[1769729838205,0.33065661,2826.0,2825.7,0.002]
[1769729838408,0.26001533,2826.0,2825.7,0.002]
[1769729839582,0.90001638,2826.1,2825.7,0.002]
[1769729839781,0.33066778,2826.0,2825.7,0.002]
[1769729839983,0.90001638,2826.1,2825.7,0.002]
[1769729840182,0.33066778,2826.0,2825.9,0.002]
[1769729842424,0.001,2826.3,2825.9,0.95020088]
[1769729842979,0.002,2826.3,2825.9,0.002]
[1769729843185,0.33166423,2826.2,2825.9,0.002]
[1769729843408,0.001,2826.2,2825.9,0.002]
[1769729847302,0.33100266,2826.1,2825.9,0.002]
[1769729847616,0.001,2826.2,2825.9,0.002]
[1769729847794,0.33102348,2826.1,2825.9,0.002]
[1769729847992,1.84981062,2826.4,2825.9,0.002]
[1769729848212,0.33202283,2826.3,2825.9,0.002]
[1769729848522,0.33102283,2826.2,2825.9,0.002]
[1769729849185,0.33102283,2826.1,2825.9,0.002]
[1769729849420,0.33102283,2826.0,2825.9,0.002]
[1769729849809,0.33102283,2826.2,2825.9,0.002]
[1769729850000,0.33102283,2826.1,2825.9,0.002]
[1769729851417,0.33102283,2826.0,2825.9,0.002]
[1769729857310,0.33102283,2826.0,2825.8,0.002]
[1769729857543,0.33102283,2825.9,2825.8,0.002]
[1769729858244,0.001,2826.3,2825.8,0.002]
[1769729858434,0.001,2826.2,2825.8,0.002]
[1769729858743,0.001,2826.2,2825.7,1.84103714]
[1769729858935,0.001,2826.1,2825.7,0.88471489]
[1769729865146,0.001,2826.1,2825.9,0.002]
[1769729869941,1.87817894,2826.9,2825.9,0.94561377]
[1769729870275,0.99380137,2826.7,2825.9,0.94561377]
[1769729870444,0.33202513,2826.6,2825.9,0.94561377]
[1769729870644,0.33202513,2826.5,2825.9,0.94561377]
[1769729870858,0.33202513,2826.4,2825.9,0.94561377]
[1769729871174,0.33202513,2826.3,2825.9,0.94561377]
[1769729871377,0.33202513,2826.2,2825.9,0.94561377]
[1769729871544,0.33202513,2826.1,2825.9,1.12864664]
[1769729871744,0.33202513,2826.0,2825.9,1.12864664]
[1769729872298,0.99380137,2826.7,2826.0,0.8846426]
[1769729872485,1.87823083,2826.7,2826.0,0.8846426]
[1769729874282,0.99380137,2826.7,2826.0,0.8846426]
[1769729874576,0.00202817,2830.7,2826.2,0.94361377]
[1769729874577,1.87815005,2827.0,2826.2,0.94361377]
[1769729875277,0.99380137,2826.9,2826.1,0.55519712]
[1769729875863,1.87816664,2826.9,2826.2,0.88458]
[1769729876244,0.88432967,2827.0,2826.2,0.88458]
[1769729876465,0.88432967,2827.0,2826.2,2.32372597]
[1769729876980,0.001,2826.8,2826.2,2.32372597]
[1769729878161,0.001,2826.3,2826.2,2.32372597]
[1769729878758,0.001,2826.3,2826.2,1.38240007]
[1769729879887,0.001,2826.3,2826.2,0.49782007]
[1769729880075,0.001,2826.3,2826.0,0.88461995]
[1769729880259,0.001,2826.3,2825.9,0.8866739]
[1769729882310,0.001,2826.3,2825.9,0.002]
[1769729882792,0.99906993,2826.3,2825.7,0.002]
[1769729883980,0.33168191,2826.2,2825.7,0.002]
[1769729884279,0.33168191,2826.1,2825.7,0.002]
[1769729884479,0.33168191,2826.0,2825.7,0.002]
[1769729884670,0.33168191,2825.9,2825.7,0.002]
[1769729884872,0.33168191,2825.8,2825.7,0.002]
[1769729886085,0.99906993,2826.3,2825.7,0.002]
[1769729886296,0.18835891,2826.2,2825.7,0.002]
[1769729888459,0.99906993,2826.3,2825.7,0.002]
[1769729888660,0.001,2826.1,2825.6,5.9780021]
[1769729889177,0.001,2826.1,2825.9,0.002]
[1769729889492,0.002,2826.1,2825.9,0.002]
[1769729896798,0.8844443,2826.7,2825.9,0.9433259]
[1769729896983,2.0760225,2826.7,2825.9,0.9433259]
[1769729897185,3.07409243,2826.7,2825.9,0.9433259]
[1769729898202,0.33157765,2826.6,2825.9,0.9433259]
[1769729898499,0.33157765,2826.5,2825.9,0.9433259]
[1769729898693,0.33157765,2826.4,2826.0,0.8846426]
[1769729898893,0.33157765,2826.3,2826.0,1.42131764]
[1769729899094,0.33157765,2826.2,2826.0,1.42131764]
[1769729899291,0.99806993,2826.7,2826.0,1.42131764]
[1769729899490,0.33158417,2826.6,2826.0,1.42131764]
[1769729899804,0.88541479,2826.8,2826.0,2.36264354]
[1769729900101,0.88541479,2826.8,2826.1,0.52924197]
[1769729900779,1.88348472,2826.8,2826.1,0.52924197]
[1769729901203,0.001,2826.5,2826.1,1.41384695]
[1769729901706,0.001,2826.5,2826.1,0.52924197]
[1769729901907,0.001,2826.5,2826.1,0.29890233]
[1769729902589,0.001,2826.5,2826.1,1.1835093]
[1769729903808,0.001,2826.5,2826.1,0.29890233]
[1769729904684,0.001,2826.5,2826.1,1.18350476]
[1769729905013,0.001,2826.5,2826.2,0.47220648]
[1769729905201,0.001,2826.4,2826.2,0.47220648]
[1769729906301,0.001,2826.4,2826.2,0.88457781]
[1769729906884,0.001,2826.4,2826.1,0.88459375]
[1769729907814,0.001,2826.4,2826.2,0.88457054]
[1769729908794,0.001,2826.4,2826.0,3.53852816]
[1769729909617,0.001,2826.5,2826.1,0.91970489]
[1769729909908,0.001,2826.5,2826.2,0.4458233]
[1769729911017,0.001,2826.5,2826.3,0.8845487]
[1769729911389,0.33160067,2826.4,2826.3,1.80425359]
[1769729911710,0.001,2826.5,2826.3,1.80425359]
[1769729911896,0.001,2826.8,2826.3,1.80425359]
[1769729912096,0.001,2826.8,2826.4,0.38975407]
[1769729912889,0.001,2826.6,2826.4,0.38975407]
[1769729913395,0.001,2826.6,2826.4,1.27424436]
[1769729918114,0.001,2826.6,2826.4,1.27324436]
[1769729922616,0.001,2826.8,2826.4,2.24409834]
[1769729922820,0.001,2826.8,2826.5,0.4458233]
[1769729923824,0.28017126,2826.7,2826.5,0.4458233]
[1769729924025,0.001,2826.8,2826.5,0.4458233]
[1769729924224,0.28017125,2826.7,2826.5,0.4458233]
[1769729924413,0.001,2826.8,2826.5,0.4458233]
[1769729924614,0.28017788,2826.7,2826.6,0.88445482]
[1769729925221,0.001,2826.8,2826.6,0.88445482]
[1769729925222,0.97822841,2827.2,2826.6,0.88445482]
[1769729926528,0.07461493,2827.3,2826.6,1.8553088]
[1769729926830,1.05284334,2827.5,2826.8,0.88339224]
[1769729928810,1.05284334,2827.5,2826.7,3.53756898]
[1769729929228,7.161,2827.8,2826.7,3.53756898]
[1769729929433,0.20601883,2827.5,2826.7,3.53756898]
[1769729929598,7.161,2827.8,2826.8,0.97085398]
[1769729929599,6.5514039,2827.8,2826.8,0.97085398]
[1769729929804,0.66260188,2827.6,2826.8,0.97085398]
[1769729930128,0.20601883,2827.9,2826.8,0.97085398]
[1769729930301,0.1314039,2827.6,2826.8,0.97085398]
[1769729930502,0.07461493,2827.5,2826.8,0.97085398]
[1769729930932,0.07461493,2827.5,2826.2,0.002]
[1769729931148,0.07461493,2827.5,2826.3,0.97085398]
[1769729932852,1.05284334,2827.5,2826.3,0.97085398]
[1769729933720,1.05284334,2827.5,2826.6,0.97085398]
[1769729935113,0.001,2827.1,2826.6,0.97085398]
[1769729937535,0.28019585,2827.0,2826.6,0.97085398]
[1769729937737,0.001,2827.1,2826.6,0.97085398]
[1769729937910,0.17772626,2827.0,2826.6,0.97085398]
[1769729938110,0.001,2827.1,2826.6,0.97085398]
[1769729938310,0.001,2827.1,2826.6,0.91743049]
[1769729938729,0.93655181,2827.8,2827.0,0.91743049]
[1769729943144,0.07461493,2827.9,2827.0,0.91743049]
[1769729943443,0.2572931,2827.9,2827.0,0.91743049]
[1769729943739,1.19384491,2827.9,2827.0,0.91743049]
[1769729943944,1.11922998,2827.9,2827.0,0.91743049]
[1769729945047,0.18267817,2827.9,2827.0,0.91743049]
[1769729945548,1.11922998,2827.9,2827.0,0.91743049]
[1769729946245,1.11922998,2827.9,2826.5,6.27153823]
[1769729946447,0.93655181,2827.7,2826.6,0.62715382]
[1769729946652,0.93655181,2827.5,2826.5,0.92143049]
[1769729947244,0.001,2827.1,2826.5,0.92143049]
[1769729948762,1.01216674,2827.6,2827.0,0.002]
[1769729949470,1.8963172,2827.6,2827.0,0.002]
[1769729950330,0.17773766,2827.5,2827.0,0.002]
[1769729950532,0.17773766,2827.4,2827.0,0.002]
[1769729950853,0.17773766,2827.3,2827.0,0.002]
[1769729951173,0.17773766,2827.2,2827.0,0.002]
[1769729951470,0.17773766,2827.1,2827.0,0.002]
[1769729956177,0.20750549,2827.5,2827.0,0.002]
[1769729956470,1.1440573,2827.5,2827.0,0.002]
[1769729956666,0.21038158,2827.4,2827.0,0.002]
[1769729958279,0.93655181,2827.5,2827.0,0.002]
[1769729959770,0.07561493,2827.6,2827.0,0.002]
[1769729961188,0.07561493,2827.6,2827.2,0.002]
[1769729961350,0.07561493,2827.6,2827.0,0.004]
[1769729962282,0.959757,2827.6,2827.0,0.004]
[1769729962584,0.18973088,2827.5,2827.0,0.004]
[1769729963294,1.01116674,2827.4,2826.5,0.88646942]
[1769729963457,1.01116674,2827.4,2826.5,0.002]
[1769729963661,1.01116674,2827.2,2826.5,0.002]
[1769729963957,1.01116674,2827.2,2826.5,0.88647785]
[1769729964169,1.01116674,2827.2,2826.5,0.002]